fUSD/lending_fUSD_20251223
["ID","MTS","AMOUNT","RATE_DAILY","PERIOD"]
[399563543,1766487587646,-566.15,0.00047397,120]
[399563544,1766487587687,-567.85,0.00047397,120]
[399563545,1766487587728,-500.0,0.00047397,120]
[399563546,1766487587767,-500.0,0.00047397,120]
[399563547,1766487587808,-500.0,0.00047397,120]
[399563548,1766487587847,-207.58822062,0.00047397,120]
[399563549,1766487587887,-1210.55,0.00047397,120]
[399563550,1766487587928,-1710.74,0.00047397,120]
[399563551,1766487587967,-500.0,0.00047397,120]
[399563552,1766487588006,-1312.95,0.00047397,120]
[399563553,1766487588047,-1224.52,0.00047397,120]
[399563554,1766487588089,-1696.75,0.00047397,120]
[399563555,1766487588128,-500.0,0.00047397,120]
[399563556,1766487588170,-500.0,0.00047397,120]
[399563557,1766487588221,-557.62,0.00047397,120]
[399563558,1766487588279,-526.92,0.00047397,120]
[399563559,1766487588324,-1297.54,0.00047397,120]
[399563560,1766487588370,-555.83,0.00047397,120]
[399563561,1766487588413,-500.0,0.00047397,120]
[399563562,1766487588454,-604.78,0.00047397,120]
[399563563,1766487588497,-873.07,0.00047397,120]
[399563564,1766487588537,-2639.11,0.00047397,120]
[399563565,1766487588576,-600.1,0.00047397,120]
[399563566,1766487588613,-500.0,0.00047397,120]
[399563567,1766487588651,-622.5,0.00047397,120]
[399563568,1766487588691,-500.0,0.00047397,120]
[399563569,1766487588731,-500.0,0.00047397,120]
[399563570,1766487588768,-567.72,0.00047397,120]
[399563571,1766487588807,-2830.44,0.00047397,120]
[399563572,1766487588846,-500.0,0.00047397,120]
[399563573,1766487588884,-711.79,0.00047397,120]
[399563574,1766487588921,-592.25,0.00047397,120]
[399563575,1766487588958,-500.0,0.00047397,120]
[399563576,1766487588998,-500.0,0.00047397,120]
[399563577,1766487589039,-619.91,0.00047397,120]
[399563578,1766487589080,-500.0,0.00047397,120]
[399563579,1766487589117,-500.0,0.00047397,60]
[399563580,1766487589158,-865.33,0.00047397,120]
[399563581,1766487589200,-580.69,0.00047397,120]
[399563582,1766487589248,-500.0,0.00047397,120]
[399563583,1766487589291,-865.61,0.00047397,120]
[399563584,1766487589335,-500.0,0.00047397,120]
[399563585,1766487589379,-1432.6,0.00047397,120]
[399563586,1766487589421,-500.0,0.00047397,120]
[399563587,1766487589463,-893.55,0.00047397,120]
[399563588,1766487589502,-500.0,0.00047397,120]
[399563589,1766487589540,-1688.71,0.00047397,120]
[399563590,1766487589579,-905.29,0.00047397,120]
[399563591,1766487589618,-632.22,0.00047397,120]
[399563592,1766487589656,-592.93,0.00047397,120]
[399563593,1766487589694,-519.34,0.00047397,120]
[399563594,1766487589731,-1835.93,0.00047397,120]
[399563595,1766487589770,-697.2,0.00047397,120]
[399563596,1766487589808,-878.66,0.00047397,120]
[399563597,1766487590115,-500.0,0.00047397,120]
[399563598,1766487590161,-500.0,0.00047397,120]
[399563599,1766487590212,-913.04,0.00047397,120]
[399563600,1766487590259,-336.28598396,0.00047397,120]
[399563601,1766487590305,-751.1,0.00047397,120]
[399563602,1766487590348,-500.0,0.00047397,120]
[399563603,1766487590389,-1075.62,0.00047397,60]
[399563604,1766487590428,-500.0,0.00047397,120]
[399563605,1766487590465,-500.0,0.00047397,120]
[399563606,1766487590502,-1328.41,0.00047397,120]
[399563607,1766487590539,-500.0,0.00047397,120]
[399563608,1766487590577,-500.0,0.00047397,120]
[399563609,1766487590619,-599.0,0.00047397,120]
[399563610,1766487590657,-886.86,0.00047397,120]
[399563611,1766487590696,-500.0,0.00047397,120]
[399563612,1766487590736,-500.0,0.00047397,120]
[399563613,1766487590775,-560.74,0.00047397,120]
[399563614,1766487590814,-1433.05,0.00047397,120]
[399563615,1766487590853,-500.0,0.00047397,120]
[399563616,1766487590892,-2265.89,0.00047397,120]
[399563617,1766487590930,-2082.47,0.00047397,120]
[399563618,1766487590970,-1141.51,0.00047397,120]
[399563619,1766487591010,-527.18929329,0.00047397,120]
[399563620,1766487591049,-1850.23,0.00047397,120]
[399563621,1766487591089,-1211.32,0.00047397,120]
[399563622,1766487591128,-1291.8,0.00047397,120]
[399563623,1766487591170,-819.42,0.00047397,120]
[399563624,1766487591221,-2579.35,0.00047397,120]
[399563625,1766487591271,-500.0,0.00047397,120]
[399563626,1766487591316,-1083.91,0.00047397,120]
[399563627,1766487591362,-2453.97,0.00047397,120]
[399563628,1766487591409,-1697.27,0.00047397,120]
[399563629,1766487591454,-1279.54,0.00047397,120]
[399563630,1766487591496,-500.0,0.00047397,120]
[399563631,1766487591538,-730.24,0.00047397,120]
[399563632,1766487591579,-500.0,0.00047397,120]
[399563633,1766487591619,-751.57,0.00047397,120]
[399563634,1766487591659,-1053.31,0.00047397,120]
[399563635,1766487591700,-516.65,0.00047397,120]
[399563636,1766487591740,-500.0,0.00047397,120]
[399563637,1766487591780,-847.16,0.00047397,120]
[399563638,1766487591821,-1188.06,0.00047397,120]
[399563639,1766487591861,-500.0,0.00047397,120]
[399563640,1766487591902,-626.28,0.00047397,120]
[399563641,1766487591946,-500.0,0.00047397,120]
[399563642,1766487591987,-1482.2,0.00047397,120]
[399563643,1766487592028,-570.04,0.00047397,120]
[399563644,1766487592069,-612.78,0.00047397,120]
[399563645,1766487592108,-500.0,0.00047397,120]
[399563646,1766487592149,-1932.35,0.00047397,120]
[399563647,1766487592190,-1255.16,0.00047397,120]
[399563648,1766487592237,-1678.76,0.00047397,120]
[399563649,1766487592287,-1569.44,0.00047397,120]
[399563650,1766487592334,-1870.13,0.00047397,120]
[399563651,1766487592382,-500.0,0.00047397,120]
[399563652,1766487592426,-500.0,0.00047397,120]
[399563653,1766487592468,-500.0,0.00047397,120]
[399563654,1766487592511,-500.0,0.00047397,120]
[399563655,1766487592554,-500.0,0.00047397,120]
[399563656,1766487592597,-2182.76,0.00047397,120]
[399563657,1766487592637,-500.0,0.00047397,120]
[399563658,1766487592677,-1062.94,0.00047397,120]
[399563659,1766487592718,-500.0,0.00047397,120]
[399563660,1766487592760,-500.0,0.00047397,120]
[399563661,1766487592800,-503.44,0.00047397,120]
[399563662,1766487592840,-595.91,0.00047397,120]
[399563663,1766487592977,-811.74,0.00047397,120]
[399563664,1766487593018,-500.0,0.00047397,120]
[399563665,1766487593059,-650.99,0.00047397,120]
[399563666,1766487593100,-500.0,0.00047397,120]
[399563667,1766487593143,-500.0,0.00047397,120]
[399563668,1766487593197,-1388.3,0.00047397,120]
[399563669,1766487593257,-500.0,0.00047397,120]
[399563670,1766487593304,-500.0,0.00047397,120]
[399563671,1766487593352,-1432.96,0.00047397,120]
[399563672,1766487593399,-689.37,0.00047397,120]
[399563673,1766487593448,-1562.05,0.00047397,120]
[399563674,1766487593494,-1196.29,0.00047397,120]
[399563675,1766487593540,-1708.74,0.00047397,120]
[399563676,1766487593584,-500.0,0.00047397,120]
[399563677,1766487593628,-1298.55,0.00047397,120]
[399563678,1766487593673,-1689.23,0.00047397,120]
[399563679,1766487593716,-1005.64,0.00047397,120]
[399563680,1766487593758,-500.0,0.00047397,60]
[399563681,1766487593801,-10397.11,0.00047397,120]
[399563682,1766487593843,-765.9,0.00047397,120]
[399563683,1766487593889,-618.54307779,0.00047397,120]
[399563684,1766487593931,-223.89601719,0.000475,120]
[399563685,1766487593974,-210.32665321,0.000475,120]
[399563686,1766487594019,-800.0,0.000475,120]
[399563687,1766487594066,-157.0,0.000476,120]
[399563688,1766487594109,-917.06,0.00047671,120]
[399563689,1766487594152,-500.0,0.00047671,120]
[399563690,1766487594196,-1369.07,0.00047671,120]
[399563691,1766487594240,-500.0,0.00047671,120]
[399563692,1766487594284,-500.0,0.00047671,120]
[399563693,1766487594326,-756.38,0.00047671,120]
[399563694,1766487594368,-500.0,0.00047671,120]
[399563695,1766487594409,-500.0,0.00047671,120]
[399563696,1766487594449,-500.0,0.00047671,120]
[399563697,1766487594490,-1039.08,0.00047671,120]
[399563698,1766487594530,-2118.86,0.00047671,120]
[399563699,1766487594575,-2017.38,0.00047671,120]
[399563700,1766487594616,-500.0,0.00047671,120]
[399563701,1766487594657,-1042.93,0.00047671,120]
[399563702,1766487594696,-308.1528034,0.00047671,120]
[399563703,1766487594737,-500.0,0.00047671,120]
[399563704,1766487594780,-500.0,0.00047671,120]
[399563705,1766487594822,-500.0,0.00047671,120]
[399563706,1766487594863,-500.0,0.00047671,120]
[399563707,1766487594902,-500.0,0.00047671,120]
[399563708,1766487594949,-500.0,0.00047671,120]
[399563709,1766487594996,-1059.91,0.00047671,120]
[399563710,1766487595044,-582.18,0.00047671,120]
[399563711,1766487595090,-500.0,0.00047671,120]
[399563712,1766487595134,-514.4,0.00047671,120]
[399563713,1766487595180,-361.06011397,0.00047671,120]
[399563714,1766487595227,-500.0,0.00047671,120]
[399563715,1766487595277,-500.0,0.00047671,120]
[399563716,1766487595320,-500.0,0.00047671,120]
[399563717,1766487595363,-250.66784289,0.00047671,120]
[399563718,1766487595410,-500.0,0.00047671,120]
[399563719,1766487595453,-150.17412644,0.00047671,120]
[399563720,1766487595500,-500.0,0.00047671,120]
[399563721,1766487595546,-500.0,0.00047671,120]
[399563722,1766487595592,-1956.07,0.00047671,120]
[399563723,1766487595632,-2752.43,0.00047671,120]
[399563724,1766487595681,-1842.03,0.00047671,120]
[399563725,1766487595724,-500.0,0.00047671,120]
[399563726,1766487595770,-500.0,0.00047671,120]
[399563727,1766487595813,-500.0,0.00047671,120]
[399563728,1766487595857,-455.05684657,0.00047671,120]
[399563729,1766487595901,-500.0,0.00047671,120]
[399563730,1766487595944,-500.0,0.00047671,120]
[399563731,1766487595993,-586.34,0.00047671,120]
[399563732,1766487596040,-500.0,0.00047671,120]
[399563733,1766487596087,-336.63147822,0.00047671,120]
[399563734,1766487596134,-457.06,0.00047671,120]
[399563735,1766487596183,-500.0,0.00047671,120]
[399563736,1766487596233,-500.0,0.00047671,120]
[399563737,1766487596283,-697.63,0.00047671,120]
[399563738,1766487596327,-500.0,0.00047671,120]
[399563739,1766487596379,-500.0,0.00047671,120]
[399563740,1766487596429,-982.85,0.00047671,120]
[399563741,1766487596478,-500.0,0.00047671,120]
[399563742,1766487596528,-500.0,0.00047671,120]
[399563743,1766487596572,-500.0,0.00047671,120]
[399563744,1766487596615,-715.76,0.00047671,120]
[399563745,1766487596656,-500.0,0.00047671,120]
[399563746,1766487596696,-210.89477777,0.00047671,120]
[399563747,1766487596735,-500.0,0.00047671,120]
[399563748,1766487596776,-369.53933465,0.00047671,120]
[399563749,1766487596816,-500.0,0.00047671,120]
[399563750,1766487596857,-484.48588813,0.00047671,120]
[399563751,1766487596897,-500.0,0.00047671,120]
[399563752,1766487596938,-1723.75,0.00047671,120]
[399563753,1766487596979,-235.58150713,0.00047671,120]
[399563754,1766487597021,-524.92,0.00047671,120]
[399563755,1766487597066,-906.89,0.00047671,60]
[399563756,1766487597110,-545.88,0.00047671,120]
[399563757,1766487597153,-500.0,0.00047671,120]
[399563758,1766487597429,-500.0,0.00047671,120]
[399563759,1766487597470,-1273.67,0.00047671,120]
[399563760,1766487597509,-500.0,0.00047671,120]
[399563761,1766487597547,-500.0,0.00047671,120]
[399563762,1766487597585,-500.0,0.00047671,120]
[399563763,1766487597623,-616.17,0.00047671,120]
[399563764,1766487597661,-779.23,0.00047671,120]
[399563765,1766487597698,-760.79,0.00047671,120]
[399563766,1766487597734,-451.27505997,0.00047671,120]
[399563767,1766487597772,-1543.48,0.00047671,120]
[399563768,1766487597821,-680.4,0.00047671,120]
[399563769,1766487597863,-500.0,0.00047671,120]
[399563770,1766487597904,-1112.14,0.00047671,120]
[399563771,1766487597944,-705.5,0.00047671,120]
[399563772,1766487597984,-500.0,0.00047671,120]
[399563773,1766487598023,-500.0,0.00047671,120]
[399563774,1766487598065,-1242.77,0.00047671,120]
[399563775,1766487598105,-500.0,0.00047671,120]
[399563776,1766487598145,-500.0,0.00047671,120]
[399563777,1766487598194,-500.0,0.00047671,120]
[399563778,1766487598244,-500.0,0.00047671,120]
[399563779,1766487598293,-636.03,0.00047671,120]
[399563780,1766487598338,-1402.13,0.00047671,120]
[399563781,1766487598380,-500.0,0.00047671,120]
[399563782,1766487598423,-500.0,0.00047671,120]
[399563783,1766487598469,-1997.32,0.00047671,120]
[399563784,1766487598511,-1364.75,0.00047671,60]
[399563785,1766487598553,-766.62,0.00047671,120]
[399563786,1766487598595,-839.95,0.00047671,120]
[399563787,1766487598637,-500.0,0.00047671,120]
[399563788,1766487598678,-522.41,0.00047671,120]
[399563789,1766487598719,-500.0,0.00047671,120]
[399563790,1766487598759,-500.0,0.00047671,120]
[399563791,1766487598800,-642.74,0.00047671,120]
[399563792,1766487598842,-500.0,0.00047671,120]
[399563793,1766487598882,-500.0,0.00047671,120]
[399563794,1766487598921,-500.0,0.00047671,120]
[399563795,1766487598961,-500.0,0.00047671,120]
[399563796,1766487599003,-1016.98,0.00047671,120]
[399563797,1766487599044,-566.15,0.00047671,120]
[399563798,1766487599091,-567.85,0.00047671,120]
[399563799,1766487599130,-529.12158534,0.00047671,120]
[399563800,1766487599173,-439.41700346,0.00047671,120]
[399563801,1766487599224,-500.0,0.00047671,120]
[399563802,1766487599272,-1710.74,0.00047671,120]
[399563803,1766487599314,-1210.55,0.00047671,120]
[399563804,1766487599358,-500.0,0.00047671,120]
[399563805,1766487599401,-1312.95,0.00047671,120]
[399563806,1766487599443,-1224.52,0.00047671,120]
[399563807,1766487599488,-1696.75,0.00047671,120]
[399563808,1766487599530,-500.0,0.00047671,120]
[399563809,1766487599569,-236.93771355,0.00047671,120]
[399563810,1766487599607,-557.62,0.00047671,120]
[399563811,1766487599645,-526.92,0.00047671,120]
[399563812,1766487599686,-1297.54,0.00047671,120]
[399563813,1766487599725,-555.83,0.00047671,120]
[399563814,1766487599769,-500.0,0.00047671,120]
[399563815,1766487599809,-604.78,0.00047671,120]
[399563816,1766487599849,-873.07,0.00047671,120]
[399563817,1766487599889,-2639.11,0.00047671,120]
[399563818,1766487599929,-600.1,0.00047671,120]
[399563819,1766487599969,-500.0,0.00047671,120]
[399563820,1766487600012,-622.5,0.00047671,120]
[399563821,1766487600060,-500.0,0.00047671,120]
[399563822,1766487600112,-500.0,0.00047671,120]
[399563823,1766487600162,-567.72,0.00047671,120]
[399563824,1766487600215,-2830.44,0.00047671,120]
[399563825,1766487600273,-500.0,0.00047671,120]
[399563826,1766487600325,-711.79,0.00047671,120]
[399563827,1766487600386,-592.25,0.00047671,120]
[399563828,1766487600442,-500.0,0.00047671,120]
[399563829,1766487600496,-206.54489314,0.00047671,120]
[399563830,1766487600548,-619.91,0.00047671,120]
[399563831,1766487600600,-500.0,0.00047671,120]
[399563832,1766487600647,-500.0,0.00047671,60]
[399563833,1766487600693,-865.33,0.00047671,120]
[399563834,1766487600739,-580.69,0.00047671,120]
[399563835,1766487600784,-500.0,0.00047671,120]
[399563836,1766487600828,-865.61,0.00047671,120]
[399563837,1766487600869,-500.0,0.00047671,120]
[399563838,1766487600913,-1432.6,0.00047671,120]
[399563839,1766487600955,-500.0,0.00047671,120]
[399563840,1766487600996,-893.55,0.00047671,120]
[399563841,1766487601041,-500.0,0.00047671,120]
[399563842,1766487601518,-1688.71,0.00047671,120]
[399563843,1766487601567,-905.29,0.00047671,120]
[399563844,1766487601611,-632.22,0.00047671,120]
[399563845,1766487601654,-592.93,0.00047671,120]
[399563846,1766487601697,-519.34,0.00047671,120]
[399563847,1766487601740,-1835.93,0.00047671,120]
[399563848,1766487601782,-697.2,0.00047671,120]
[399563849,1766487601823,-878.66,0.00047671,120]
[399563850,1766487601866,-500.0,0.00047671,120]
[399563851,1766487601908,-500.0,0.00047671,120]
[399563852,1766487601950,-913.04,0.00047671,120]
[399563853,1766487601993,-751.1,0.00047671,120]
[399563854,1766487602037,-500.0,0.00047671,120]
[399563855,1766487602083,-1075.62,0.00047671,60]
[399563856,1766487602131,-500.0,0.00047671,120]
[399563857,1766487602174,-500.0,0.00047671,120]
[399563858,1766487602226,-1328.41,0.00047671,120]
[399563859,1766487602273,-500.0,0.00047671,120]
[399563860,1766487602320,-500.0,0.00047671,120]
[399563861,1766487602370,-599.0,0.00047671,120]
[399563862,1766487602417,-886.86,0.00047671,120]
[399563863,1766487602463,-500.0,0.00047671,120]
[399563864,1766487602507,-500.0,0.00047671,120]
[399563865,1766487602552,-560.74,0.00047671,120]
[399563866,1766487602592,-1433.05,0.00047671,120]
[399563867,1766487602633,-500.0,0.00047671,120]
[399563868,1766487602674,-2265.89,0.00047671,120]
[399563869,1766487602714,-2082.47,0.00047671,120]
[399563870,1766487602754,-1141.51,0.00047671,120]
[399563871,1766487602793,-1850.23,0.00047671,120]
[399563872,1766487602833,-1211.32,0.00047671,120]
[399563873,1766487602875,-1291.8,0.00047671,120]
[399563874,1766487602917,-819.42,0.00047671,120]
[399563875,1766487602959,-2579.35,0.00047671,120]
[399563876,1766487603000,-500.0,0.00047671,120]
[399563877,1766487603062,-1083.91,0.00047671,120]
[399563878,1766487603117,-2453.97,0.00047671,120]
[399563879,1766487603174,-1697.27,0.00047671,120]
[399563880,1766487603237,-1279.54,0.00047671,120]
[399563881,1766487603292,-500.0,0.00047671,120]
[399563882,1766487603347,-730.24,0.00047671,120]
[399563883,1766487603402,-500.0,0.00047671,120]
[399563884,1766487603455,-751.57,0.00047671,120]
[399563885,1766487603508,-1053.31,0.00047671,120]
[399563886,1766487603562,-516.65,0.00047671,120]
[399563887,1766487603614,-500.0,0.00047671,120]
[399563888,1766487603669,-847.16,0.00047671,120]
[399563889,1766487603724,-1188.06,0.00047671,120]
[399563890,1766487603779,-500.0,0.00047671,120]
[399563891,1766487603836,-626.28,0.00047671,120]
[399563892,1766487603891,-500.0,0.00047671,120]
[399563893,1766487603947,-1482.2,0.00047671,120]
[399563894,1766487604012,-570.04,0.00047671,120]
[399563895,1766487604066,-612.78,0.00047671,120]
[399563896,1766487604119,-500.0,0.00047671,120]
[399563897,1766487604173,-1932.35,0.00047671,120]
[399563898,1766487604237,-1255.16,0.00047671,120]
[399563899,1766487604292,-1678.76,0.00047671,120]
[399563900,1766487604347,-1569.44,0.00047671,120]
[399563901,1766487604401,-1870.13,0.00047671,120]
[399563902,1766487604456,-500.0,0.00047671,120]
[399563903,1766487604511,-415.17068304,0.00047671,120]
[399563904,1766487604567,-500.0,0.00047671,120]
[399563905,1766487604621,-500.0,0.00047671,120]
[399563906,1766487604677,-500.0,0.00047671,120]
[399563907,1766487604731,-2182.76,0.00047671,120]
[399563908,1766487604851,-500.0,0.00047671,120]
[399563909,1766487604906,-1062.94,0.00047671,120]
[399563910,1766487604959,-500.0,0.00047671,120]
[399563911,1766487605014,-500.0,0.00047671,120]
[399563912,1766487605070,-503.44,0.00047671,120]
[399563913,1766487605126,-595.91,0.00047671,120]
[399563914,1766487605182,-811.74,0.00047671,120]
[399563915,1766487605243,-348.65466367,0.00047671,120]
[399563916,1766487605297,-650.99,0.00047671,120]
[399563917,1766487605354,-500.0,0.00047671,120]
[399563918,1766487605409,-1388.3,0.00047671,120]
[399563919,1766487605466,-226.19577022,0.00047671,120]
[399563920,1766487605519,-500.0,0.00047671,120]
[399563921,1766487605573,-500.0,0.00047671,120]
[399563922,1766487605632,-1432.96,0.00047671,120]
[399563923,1766487605687,-689.37,0.00047671,120]
[399563924,1766487605740,-1562.05,0.00047671,120]
[399563925,1766487605793,-1196.29,0.00047671,120]
[399563926,1766487605850,-1708.74,0.00047671,120]
[399563927,1766487605920,-500.0,0.00047671,120]
[399563928,1766487605974,-1298.55,0.00047671,120]
[399563929,1766487606027,-1689.23,0.00047671,120]
[399563930,1766487606080,-1005.64,0.00047671,120]
[399563931,1766487606134,-546.84407393,0.00047671,60]
[399563932,1766487606195,-10397.11,0.00047671,120]
[399563933,1766487606251,-765.9,0.00047671,120]
[399563934,1766487606311,-2677.03,0.00047671,120]
[399563935,1766487606365,-176.0,0.000477,120]
[399563936,1766487606419,-200.0,0.00047927,120]
[399563937,1766487606471,-917.06,0.00047945,120]
[399563938,1766487606525,-500.0,0.00047945,120]
[399563939,1766487606579,-1369.07,0.00047945,120]
[399563940,1766487606633,-500.0,0.00047945,120]
[399563941,1766487606688,-500.0,0.00047945,120]
[399563942,1766487606740,-756.38,0.00047945,120]
[399563943,1766487606793,-500.0,0.00047945,120]
[399563944,1766487606844,-500.0,0.00047945,120]
[399563945,1766487606894,-500.0,0.00047945,120]
[399563946,1766487606945,-1039.08,0.00047945,120]
[399563947,1766487606996,-2118.86,0.00047945,120]
[399563948,1766487607051,-2017.38,0.00047945,120]
[399563949,1766487607103,-500.0,0.00047945,120]
[399563950,1766487607157,-1042.93,0.00047945,120]
[399563951,1766487607212,-500.0,0.00047945,120]
[399563952,1766487607269,-500.0,0.00047945,120]
[399563953,1766487607324,-500.0,0.00047945,120]
[399563954,1766487607380,-500.0,0.00047945,120]
[399563955,1766487607433,-500.0,0.00047945,120]
[399563956,1766487607486,-500.0,0.00047945,120]
[399563957,1766487607541,-1059.91,0.00047945,120]
[399563958,1766487607596,-582.18,0.00047945,120]
[399563959,1766487607649,-294.34584462,0.00047945,120]
[399563960,1766487607702,-514.4,0.00047945,120]
[399563961,1766487607757,-500.0,0.00047945,120]
[399563962,1766487607812,-500.0,0.00047945,120]
[399563963,1766487607865,-500.0,0.00047945,120]
[399563964,1766487607917,-500.0,0.00047945,120]
[399563965,1766487607970,-550.15976189,0.00047945,120]
[399563966,1766487608026,-500.0,0.00047945,120]
[399563967,1766487608079,-1956.07,0.00047945,120]
[399563968,1766487608133,-2752.43,0.00047945,120]
[399563969,1766487608191,-1842.03,0.00047945,120]
[399563970,1766487608248,-500.0,0.00047945,120]
[399563971,1766487608306,-390.96438258,0.00047945,120]
[399563972,1766487608364,-545.32679144,0.00047945,120]
[399563973,1766487608418,-500.0,0.00047945,120]
[399563974,1766487608473,-500.0,0.00047945,120]
[399563975,1766487608530,-586.34,0.00047945,120]
[399563976,1766487608583,-500.0,0.00047945,120]
[399563977,1766487608637,-500.0,0.00047945,120]
[399563978,1766487608692,-500.0,0.00047945,120]
[399563979,1766487608747,-697.63,0.00047945,120]
[399563980,1766487608802,-500.0,0.00047945,120]
[399563981,1766487608855,-500.0,0.00047945,120]
[399563982,1766487608910,-982.85,0.00047945,120]
[399563983,1766487608964,-500.0,0.00047945,120]
[399563984,1766487609021,-500.0,0.00047945,120]
[399563985,1766487609075,-166.2027636,0.00047945,120]
[399563986,1766487609128,-715.76,0.00047945,120]
[399563987,1766487609181,-537.58430442,0.00047945,120]
[399563988,1766487609241,-186.4804138,0.00047945,120]
[399563989,1766487609297,-500.0,0.00047945,120]
[399563990,1766487609352,-500.0,0.00047945,120]
[399563991,1766487609409,-1723.75,0.00047945,120]
[399563992,1766487609464,-524.92,0.00047945,120]
[399563993,1766487609518,-906.89,0.00047945,60]
[399563994,1766487609572,-545.88,0.00047945,120]
[399563995,1766487609625,-500.0,0.00047945,120]
[399563996,1766487609677,-212.7947012,0.00047945,120]
[399563997,1766487609729,-1273.67,0.00047945,120]
[399563998,1766487609780,-500.0,0.00047945,120]
[399563999,1766487609831,-500.0,0.00047945,120]
[399564000,1766487609884,-438.70668712,0.00047945,120]
[399564001,1766487609940,-616.17,0.00047945,120]
[399564002,1766487609995,-779.23,0.00047945,120]
[399564003,1766487610050,-760.79,0.00047945,120]
[399564004,1766487610231,-1543.48,0.00047945,120]
[399564005,1766487610286,-680.4,0.00047945,120]
[399564006,1766487610341,-500.0,0.00047945,120]
[399564007,1766487610396,-1112.14,0.00047945,120]
[399564008,1766487610452,-705.5,0.00047945,120]
[399564009,1766487610507,-500.0,0.00047945,120]
[399564010,1766487610561,-500.0,0.00047945,120]
[399564011,1766487610617,-1242.77,0.00047945,120]
[399564012,1766487610670,-500.0,0.00047945,120]
[399564013,1766487610729,-452.76254827,0.00047945,120]
[399564014,1766487610784,-500.0,0.00047945,120]
[399564015,1766487610838,-500.0,0.00047945,120]
[399564016,1766487610893,-636.03,0.00047945,120]
[399564017,1766487610948,-1402.13,0.00047945,120]
[399564018,1766487611004,-500.0,0.00047945,120]
[399564019,1766487611058,-500.0,0.00047945,120]
[399564020,1766487611113,-1997.32,0.00047945,120]
[399564021,1766487611169,-1364.75,0.00047945,60]
[399564022,1766487611226,-766.62,0.00047945,120]
[399564023,1766487611285,-839.95,0.00047945,120]
[399564024,1766487611344,-500.0,0.00047945,120]
[399564025,1766487611402,-522.41,0.00047945,120]
[399564026,1766487611461,-500.0,0.00047945,120]
[399564027,1766487611516,-500.0,0.00047945,120]
[399564028,1766487611582,-642.74,0.00047945,120]
[399564029,1766487611641,-500.0,0.00047945,120]
[399564030,1766487611700,-500.0,0.00047945,120]
[399564031,1766487611759,-500.0,0.00047945,120]
[399564032,1766487611817,-500.0,0.00047945,120]
[399564033,1766487611872,-1016.98,0.00047945,120]
[399564034,1766487611928,-566.15,0.00047945,120]
[399564035,1766487611984,-567.85,0.00047945,120]
[399564036,1766487612040,-296.70499349,0.00047945,120]
[399564037,1766487612098,-1710.74,0.00047945,120]
[399564038,1766487612153,-1210.55,0.00047945,120]
[399564039,1766487612209,-500.0,0.00047945,120]
[399564040,1766487612270,-1312.95,0.00047945,120]
[399564041,1766487612326,-1224.52,0.00047945,120]
[399564042,1766487612388,-1696.75,0.00047945,120]